fUST/lending_fUST_20250827
["ID","MTS","AMOUNT","RATE_DAILY","PERIOD"]
[381552476,1756279843898,-1545.91,0.00029468,15]
[381552477,1756279843907,-150.8,0.00029486,15]
[381552478,1756279843916,-151.0,0.00029489,60]
[381552479,1756279843927,-151.0,0.00029489,60]
[381552480,1756279843937,-151.0,0.00029489,60]
[381552481,1756279843947,-500.0,0.00029489,60]
[381552482,1756279843956,-500.0,0.00029489,60]
[381552483,1756279843965,-151.0,0.00029489,60]
[381552484,1756279843975,-151.0,0.00029489,60]
[381552485,1756279843984,-151.70332095,0.00029489,60]
[381552486,1756279843994,-151.0,0.00029489,60]
[381552487,1756279844005,-199.0,0.00029489,120]
[381552488,1756279844027,-199.0,0.00029489,120]
[381552489,1756279844045,-1204.3454986,0.000295,120]
[381552490,1756279844054,-1545.91,0.00029568,15]
[381552491,1756279844064,-1708.2768858,0.00029585,2]
[381552492,1756279844074,-150.8,0.00029586,15]
[381552493,1756279844084,-1488.569107,0.00029589,120]
[381552494,1756279844093,-2500.0,0.00029592,2]
[381552495,1756279844103,-650.0,0.00029612,5]
[381552496,1756279844112,-14462.41423572,0.00029663,2]
[381552497,1756279844122,-860.0,0.00029664,2]
[381552498,1756279844131,-1545.91,0.00029668,15]
[381552499,1756279844141,-150.8,0.00029686,15]
[381552500,1756279844151,-151.0,0.000297,19]
[381552501,1756279844160,-79580.55,0.000297,7]
[381552502,1756279844169,-151.0,0.00029763,60]
[381552503,1756279844180,-151.0,0.00029763,60]
[381552504,1756279844190,-151.0,0.00029763,60]
[381552505,1756279844199,-500.0,0.00029763,60]
[381552506,1756279844209,-500.0,0.00029763,60]
[381552507,1756279844218,-151.0,0.00029763,60]
[381552508,1756279844227,-247.28071032,0.00029763,60]
[381552509,1756279844236,-2000.0,0.00029764,2]
[381552510,1756279844246,-1545.91,0.00029768,15]
[381552511,1756279844256,-150.8,0.00029786,15]
[381552512,1756279844265,-293.676907,0.00029813,20]
[381552513,1756279844274,-1545.93494353,0.00029868,15]
[381552514,1756279844284,-150.8,0.00029886,15]
[381552515,1756279844293,-899.999999,0.000299,2]
[381552516,1756279844302,-151.05750653,0.00029916,5]
[381552517,1756279844312,-3000.0,0.00029982,2]
[381552518,1756279844321,-150.8,0.00029986,15]
[381552519,1756279844331,-199955.4534437,0.00029998,120]
[381552520,1756279844340,-1000.0,0.0003,2]
[381552521,1756279844350,-2392.84664262,0.0003,3]
[381552522,1756279844361,-212.11506658,0.0003,120]
[381552523,1756279844370,-758.92510499,0.0003,120]
[381552524,1756279844379,-6104.97417833,0.0003,30]
[381552525,1756279844388,-253.68533859,0.0003,120]
[381552526,1756279844397,-633.48701771,0.0003,120]
[381552527,1756279844406,-375.76980098,0.0003,120]
[381552528,1756279844415,-417.30639954,0.0003,30]
[381552529,1756279844426,-216.14835892,0.0003,120]
[381552530,1756279844435,-4000.0,0.0003,4]
[381552531,1756279844444,-2978.2,0.00030012,3]
[381552532,1756279844453,-293.676907,0.00030025,10]
[381552533,1756279844464,-151.0,0.00030037,60]
[381552534,1756279844475,-151.70519922,0.00030037,60]
[381552535,1756279844488,-500.0,0.00030037,60]
[381552536,1756279844497,-503.19506388,0.00030037,60]
[381552537,1756279844506,-151.78466204,0.00030037,60]
[381552538,1756279844516,-150.8,0.00030086,15]
[381552539,1756279844526,-284.30044916,0.0003013,2]
[381552540,1756279844536,-1000.0,0.00030136,120]
[381552541,1756279844546,-1000.0,0.00030136,120]
[381552542,1756279844556,-1000.0,0.00030136,120]
[381552543,1756279844566,-1000.0,0.00030136,120]
[381552544,1756279844575,-1000.0,0.00030136,120]
[381552545,1756279844584,-1000.0,0.00030136,120]
[381552546,1756279844593,-1000.0,0.00030136,120]
[381552547,1756279844603,-1000.0,0.00030136,120]
[381552548,1756279844612,-1000.0,0.00030136,120]
[381552549,1756279844621,-1000.0,0.00030136,120]
[381552550,1756279844630,-1000.0,0.00030136,120]
[381552551,1756279844640,-1000.0,0.00030136,120]
[381552552,1756279844649,-823.86870072,0.00030136,120]
[381552553,1756279844658,-20950.10555361,0.00030137,2]
[381552554,1756279844671,-1166.96194687,0.00030137,2]
[381552555,1756279844684,-2291.09604591,0.00030137,2]
[381552556,1756279844695,-812.33175654,0.00030137,2]
[381552564,1756279845279,-383.112,0.0002625,2]
[381552566,1756279845291,-116.888,0.0002625,2]
[381552567,1756279845300,-317.30999098,0.0002625,2]
[381552568,1756279845311,-182.69000902,0.0002625,2]
[381552569,1756279845321,-500.0,0.0002625,2]
[381552570,1756279845330,-243.323146,0.000292,7]
[381552571,1756279845340,-5573.88684498,0.00030137,2]
[381552578,1756279846219,-440.14830264,0.00024459,2]
[381552579,1756279846229,-47.09197046,0.00024459,2]
[381552580,1756279846249,-298.35613702,0.00024459,2]
[381552581,1756279846260,-154.55189252,0.00024459,2]
[381552582,1756279846270,-456.25,0.00024459,2]
[381552583,1756279846279,-500.0,0.00024459,2]
[381552584,1756279846288,-448.86426194,0.00024459,2]
[381552585,1756279846297,-500.0,0.0002625,2]
[381552586,1756279846306,-500.0,0.0002625,2]
[381552587,1756279846316,-33.83565808,0.0002625,2]
[381552598,1756279847558,-500.0,0.00024799,2]
[381552599,1756279847568,-500.0,0.00024799,2]
[381552600,1756279847577,-500.0,0.00024799,2]
[381552601,1756279847587,-377.10729174,0.00024799,2]
[381552602,1756279847597,-500.0,0.00024799,2]
[381552603,1756279847606,-500.0,0.00024799,2]
[381552604,1756279847616,-1469.69429886,0.00024977,10]
[381552605,1756279847627,-967.70310266,0.00024977,10]
[381552606,1756279847646,-47.74259848,0.00024977,10]
[381552607,1756279847656,-466.16434192,0.0002625,2]
[381552608,1756279847665,-500.0,0.0002625,2]
[381552609,1756279847675,-500.0,0.0002625,2]
[381552610,1756279847686,-385.00420597,0.00029052,2]
[381552641,1756279966443,2551.26826552,0.000199,2]
[381552642,1756279966607,2551.26826524,0.00021627,2]
[381552646,1756280042631,5000.0,0.00023,2]
[381552647,1756280057349,5000.0,0.00023,2]
[381552648,1756280073845,5000.0,0.00023,2]
[381552650,1756280088860,5000.0,0.00023,2]
[381552651,1756280104282,5000.0,0.00023,2]
[381552653,1756280120215,5000.0,0.00023,2]
[381552654,1756280124122,-173.64060587,0.00023253,73]
[381552655,1756280124154,-156.52827372,0.00023253,2]
[381552658,1756280132306,-2551.26826524,0.00023353,2]
[381552659,1756280132337,-153.70785489,0.00023353,2]
[381552660,1756280132367,-156.06169757,0.00023559,2]
[381552661,1756280132399,-666.0,0.00023659,2]
[381552662,1756280132431,-817.0153663,0.00023881,2]
[381552663,1756280132462,-188.0,0.00024597,2]
[381552664,1756280132493,-160.0,0.00024598,2]
[381552665,1756280132525,-156.06169756,0.00024598,2]
[381552666,1756280132562,-3.78023688,0.00024598,2]
[381552667,1756280132956,-296.21976312,0.00024598,2]
[381552668,1756280132989,-300.0,0.00024598,2]
[381552669,1756280133024,-300.0,0.00024598,2]
[381552670,1756280133061,-300.0,0.00024598,2]
[381552671,1756280133096,-300.0,0.00024598,2]
[381552672,1756280133133,-156.52827372,0.00024598,2]
[381552673,1756280133167,-3305.92441026,0.00024599,2]
[381552674,1756280133288,-500.0,0.00024673,2]
[381552675,1756280133320,-500.0,0.00024673,2]
[381552676,1756280133353,-698.56,0.00024689,3]
[381552677,1756280133386,-349.28,0.00024689,3]
[381552678,1756280133419,-174.64,0.00024689,3]
[381552679,1756280133452,-2070.95,0.00024689,10]
[381552680,1756280133484,-523.94,0.00024689,3]
[381552681,1756280133518,-171.77341968,0.00024697,2]
[381552682,1756280133775,-21.72316064,0.00024697,2]
[381552683,1756280133812,-500.0,0.00024697,2]
[381552684,1756280133850,-500.0,0.00024697,2]
[381552685,1756280134062,-500.0,0.00024697,2]
[381552686,1756280134100,-500.0,0.00024697,2]
[381552687,1756280134139,-500.0,0.00024697,2]
[381552688,1756280134177,-500.0,0.00024697,2]
[381552689,1756280134215,-500.0,0.00024697,2]
[381552690,1756280134251,-160.98491799,0.00024697,2]
[381552691,1756280134289,-500.0,0.00024697,2]
[381552692,1756280134327,-313.97510422,0.00024697,2]
[381552693,1756280134363,-500.0,0.00024697,2]
[381552694,1756280134839,-500.0,0.00024697,2]
[381552695,1756280134877,-500.0,0.00024697,2]
[381552696,1756280134914,-500.0,0.00024697,2]
[381552697,1756280134951,-500.0,0.00024697,2]
[381552698,1756280134986,-319.78257295,0.00024697,2]
[381552699,1756280135026,-500.0,0.00024697,2]
[381552700,1756280143065,2517.46586046,0.000199,2]
[381552701,1756280143304,2517.4658604,0.00021627,2]
[381552702,1756280143577,-2517.4658604,0.00023353,2]
[381552703,1756280143693,-1794.57019009,0.00024698,2]
[381552704,1756280143731,-10000.01,0.00024698,2]
[381552705,1756280143934,-10000.01,0.00024698,2]
[381552706,1756280144195,-10000.01,0.00024698,2]
[381552707,1756280144442,-10000.01,0.00024698,2]
[381552710,1756280229779,1437.61238891,0.00023353,2]
[381552711,1756280280461,214.52,0.00016384,2]
[381552715,1756280319605,2353.07539133,0.000199,2]
[381552716,1756280319755,2353.07539123,0.00021627,2]
[381552717,1756280326047,5000.0,0.00023353,2]
[381552718,1756280326948,160.0,0.0002,3]
[381552719,1756280341484,5000.0,0.00023353,2]
[381552720,1756280357391,5000.0,0.00023353,2]
[381552721,1756280373253,5000.0,0.00023353,2]
[381552722,1756280390164,5000.0,0.00023353,2]
[381552723,1756280406271,5000.0,0.00023353,2]
[381552726,1756280414085,1044.31771136,0.00023353,2]
[381552728,1756280422925,5000.0,0.00023353,2]
[381552729,1756280430918,3955.68228864,0.00023353,2]
[381552730,1756280439273,5000.0,0.00023353,2]
[381552731,1756280452251,231.59875354,0.00023295,2]
[381552732,1756280454703,5000.0,0.00023353,2]
[381552733,1756280472011,5000.0,0.00023353,2]
[381552734,1756280487274,5000.0,0.00023353,2]
[381552735,1756280487848,173.64060586,0.00023295,74]
[381552736,1756280491366,172.2218391,0.00023295,2]
[381552737,1756280496099,2196.20369852,0.000199,2]
[381552738,1756280496195,2196.20369848,0.00021627,2]
[381552739,1756280503818,5000.0,0.00023353,2]
[381552743,1756280519703,5000.0,0.00023353,2]
[381552744,1756280535089,5000.0,0.00023353,2]
[381552750,1756280550477,5000.0,0.00023353,2]
[381552754,1756280565851,5000.0,0.00023353,2]
[381552755,1756280568868,188.4031321,0.00022887,2]
[381552756,1756280575436,2080.6095791,0.00022868,2]
[381552757,1756280581372,5000.0,0.00023353,2]
[381552758,1756280597652,5000.0,0.00023353,2]
[381552759,1756280602688,373.97820586,0.00023253,2]
[381552761,1756280611363,175.79735165,0.00023295,2]
[381552762,1756280612412,218.51946534,0.00023353,2]
[381552763,1756280612606,218.51946534,0.00023353,2]
[381552766,1756280614869,5000.0,0.00023353,2]
[381552767,1756280618661,203.6903084,0.00023253,2]
[381552770,1756280629272,4453.7546154,0.00022888,2]
[381552771,1756280630548,5000.0,0.00023353,2]
[381552774,1756280643174,887.873099,0.00013699,2]
[381552775,1756280643397,887.873099,0.00020187,2]
[381552776,1756280646088,5000.0,0.00023353,2]
[381552782,1756280661560,5000.0,0.00023353,2]
[381552783,1756280672445,2940.91757201,0.000199,2]
[381552784,1756280672724,2940.91757183,0.00021627,2]
[381552785,1756280677194,4118.17485616,0.00023353,2]
[381552786,1756280677227,881.82514384,0.00023353,2]
[381552787,1756280692837,5000.0,0.00023353,2]
[381552788,1756280708197,5000.0,0.00023353,2]
[381552789,1756280713860,175.79735165,0.00023295,2]
[381552790,1756280723626,5000.0,0.00023353,2]
[381552791,1756280727143,4540.7513451,0.00022913,2]
[381552792,1756280730271,459.2586549,0.00022913,2]
[381552793,1756280730300,1333.1725429,0.00022913,2]
[381552794,1756280739025,5000.0,0.00023353,2]
[381552795,1756280754898,5000.0,0.00023353,2]
[381552796,1756280771028,5000.0,0.00023353,2]
[381552797,1756280788362,5000.0,0.00023353,2]
[381552800,1756280803781,5000.0,0.00023353,2]
[381552801,1756280814102,-334.32747589,0.00023353,2]
[381552802,1756280819336,5000.0,0.00023353,2]
[381552803,1756280834677,5000.0,0.00023353,2]
[381552804,1756280848140,3841.71875996,0.000199,2]
[381552805,1756280848217,3841.71875985,0.00021627,2]
[381552806,1756280851198,5000.0,0.00023353,2]
[381552807,1756280867554,5000.0,0.00023353,2]
[381552808,1756280869019,459.37527666,0.00022653,2]
[381552809,1756280869383,229.68763833,0.00022982,2]
[381552810,1756280883498,5000.0,0.00023353,2]
[381552812,1756280898347,173.64060586,0.00023295,74]
[381552814,1756280900441,5000.0,0.00023353,2]
[381552815,1756280906108,666.0,0.00022909,2]
[381552819,1756280914635,151.0,0.00023353,2]
[381552820,1756280915720,218.51946534,0.00023353,2]
[381552821,1756280916709,5000.0,0.00023353,2]
[381552825,1756280932622,5000.0,0.00023353,2]
[381552826,1756280933391,10000.0,0.00022899,2]
[381552832,1756280948715,5000.0,0.00023353,2]
[381552834,1756280965455,5000.0,0.00023353,2]
[381552835,1756280980989,5000.0,0.00023353,2]
[381552836,1756280981464,1000.0,0.00022926,2]
[381552837,1756280997614,5000.0,0.00023353,2]
[381552838,1756281014396,5000.0,0.00023353,2]
[381552839,1756281030392,3598.6814521,0.000199,2]
[381552840,1756281030568,3598.68145181,0.00021627,2]
[381552841,1756281031168,5000.0,0.00023353,2]
[381552845,1756281033171,-3598.68145181,0.00023353,2]
[381552846,1756281033182,-207.0582772,0.00023395,2]
[381552847,1756281033191,-698.627815,0.00023576,2]
[381552848,1756281033201,-1233.3069371,0.00023692,2]
[381552849,1756281033211,-698.217431,0.00023698,2]
[381552850,1756281033221,-1200.0,0.00023972,2]
[381552851,1756281033231,-500.0,0.00023973,2]
[381552852,1756281033240,-500.0,0.00023973,2]
[381552853,1756281033252,-300.0,0.00023978,2]
[381552854,1756281033262,-300.0,0.00023979,2]
[381552855,1756281033273,-300.0,0.00023979,2]
[381552856,1756281033283,-300.0,0.00023979,2]
[381552857,1756281033293,-1725.79,0.0002398,10]
[381552858,1756281033304,-500.0,0.00023983,2]
[381552859,1756281033314,-500.0,0.00023983,2]
[381552860,1756281033324,-500.0,0.00023983,2]
[381552861,1756281033335,-1200.0,0.00023983,2]
[381552862,1756281033346,-10686.53995316,0.00023984,2]
[381552939,1756281035915,2602.51,0.00023353,2]
[381552950,1756281038782,-500.0,0.00023983,2]
[381552952,1756281038792,-500.0,0.00023983,2]
[381552954,1756281038801,-371.75343313,0.00023983,2]
[381552956,1756281038811,-25413.61762511,0.00023984,2]
[381552958,1756281038822,-100000.0,0.0002399,2]
[381552959,1756281038832,-3540.27535955,0.00024421,2]
[381552960,1756281038843,-1000.0,0.00024521,2]
[381552961,1756281038852,-190.5840476,0.00024555,2]
[381552962,1756281038862,-900.9632479,0.00024555,2]
[381552963,1756281038871,-1674.3921212,0.00024555,2]
[381552964,1756281038881,-160.0,0.00024593,2]
[381552965,1756281038890,-5672.38463586,0.000246,2]
[381552966,1756281038899,-32973.2979769,0.00024658,2]
[381552967,1756281038909,-500.0,0.00024673,2]
[381552968,1756281038919,-500.0,0.00024673,2]
[381552969,1756281038928,-398.07412314,0.00024673,2]
[381552970,1756281038937,-500.0,0.00024673,2]
[381552971,1756281038947,-500.0,0.00024673,2]
[381552972,1756281038957,-500.0,0.00024673,2]
[381552973,1756281038967,-500.0,0.00024673,2]
[381552974,1756281038976,-502.46213118,0.00024673,2]
[381552975,1756281038985,-500.0,0.00024673,2]
[381552976,1756281038995,-500.0,0.00024673,2]
[381552977,1756281039004,-500.0,0.00024673,2]
[381552978,1756281039013,-500.0,0.00024673,2]
[381552979,1756281039024,-501.56192813,0.00024673,2]
[381552980,1756281039034,-500.0,0.00024673,2]
[381552981,1756281039043,-500.0,0.00024673,2]
[381552982,1756281039053,-150.0,0.00024673,2]
[381552983,1756281039063,-413.95211664,0.00024673,2]
[381552984,1756281039072,-505.76236737,0.00024673,2]
[381552985,1756281039082,-500.0,0.00024673,2]
[381552986,1756281039091,-500.0,0.00024673,2]
[381552987,1756281039100,-496.77,0.00024679,3]
[381552988,1756281039110,-248.39,0.00024679,3]
[381552989,1756281039119,-745.17,0.00024679,3]
[381552990,1756281039128,-268910.04692699,0.00024699,2]
[381553284,1756281043579,-37.14749732,0.00024699,2]
[381553285,1756281043686,-1233.257172,0.00024699,2]
[381553286,1756281043707,-487.53316756,0.00024699,2]
[381553398,1756281047929,-2775.98618257,0.00024442,2]
[381553400,1756281047939,-1438.16,0.00024689,10]
[381553401,1756281047948,-89552.3512158,0.00024699,2]
[381553750,1756281086745,-3263.7214038,0.00023736,2]
[381553751,1756281086779,-300.0,0.00023982,2]
[381553752,1756281086815,-500.0,0.00023983,2]
[381553753,1756281086849,-500.0,0.00023983,2]
[381553754,1756281087215,-372.5671924,0.00023983,2]
[381553755,1756281087521,-127.4328076,0.00023983,2]
[381553756,1756281087554,-260.22740319,0.00023983,2]
[381553757,1756281087590,-500.0,0.00023983,2]
[381553758,1756281087623,-500.0,0.00023983,2]
[381553759,1756281087655,-550.0,0.00023983,2]
[381553760,1756281087686,-500.0,0.00024673,2]
[381553761,1756281087727,-220.34597967,0.00024699,2]
[381553762,1756281087774,-440.69195934,0.00024699,2]
[381553763,1756281087971,-4005.90553401,0.00024699,2]
[381553764,1756281087990,-5112.72054731,0.00024699,2]
[381553765,1756281087999,-4666.94347302,0.000247,7]
[381553766,1756281088024,-9559.31804066,0.000247,7]
[381553767,1756281091695,-157.9026632,0.00023871,2]
[381553768,1756281091741,-9684.2046736,0.000247,7]
[381553769,1756281091890,-10000.01,0.000247,7]
[381553770,1756281092116,-10000.01,0.000247,7]
[381553771,1756281092352,-10000.01,0.000247,7]
[381553772,1756281092534,-10000.01,0.000247,7]
[381553773,1756281092747,-2288.01618728,0.000247,7]
[381553774,1756281092775,-5423.97762544,0.000247,7]
[381553775,1756281104025,-500.0,0.00023983,2]
[381553776,1756281104059,-500.0,0.00023983,2]
[381553777,1756281104094,-541.82464649,0.00023983,2]
[381553778,1756281104127,-201.39602192,0.00023983,2]
[381553779,1756281104159,-500.0,0.00023983,2]
[381553780,1756281104191,-367.58261616,0.00023983,2]
[381553781,1756281104223,-222.73733721,0.00023983,2]
[381553782,1756281104255,-500.0,0.00023983,2]
[381553783,1756281104285,-500.0,0.00023983,2]
[381553784,1756281104323,-393.43451422,0.00023983,2]
[381553785,1756281104360,-500.0,0.00023983,2]
[381553786,1756281104394,-46.059728,0.00023983,2]
[381553787,1756281104575,-453.940272,0.00023983,2]
[381553788,1756281104614,-500.0,0.00023983,2]
[381553789,1756281104650,-500.0,0.00023983,2]
[381553790,1756281104686,-500.0,0.00023983,2]
[381553791,1756281104718,-2412.499456,0.000247,7]
[381553792,1756281104890,-500.0,0.00023983,2]
[381553793,1756281104923,-1267.130544,0.000247,7]
[381553794,1756281104957,-151.0,0.000247,7]
[381553795,1756281104989,-160.0,0.000247,7]
[381553796,1756281105024,-217.23771399,0.000247,7]
[381553797,1756281105057,-477.27087007,0.00024745,2]
[381553798,1756281105092,-926.03573836,0.000248,2]
[381553799,1756281105189,-2602.66026716,0.000248,2]
[381553800,1756281105221,-510.97540017,0.00024873,2]
[381553801,1756281105253,-150.0,0.00024873,2]
[381553802,1756281105284,-1164.90164664,0.00024873,2]
[381553803,1756281105321,-294.05800046,0.0002489,2]
[381553804,1756281105430,-1198.47,0.0002489,10]
[381553805,1756281105464,-248.38,0.0002489,3]
[381553806,1756281105498,-998.72,0.0002489,10]
[381553807,1756281105830,-374.00766687,0.000249,2]
[381553808,1756281105859,-150.0,0.000249,2]
[381553809,1756281105877,-1164.90164664,0.000249,2]
[381553810,1756281105900,-294.05800046,0.000249,2]
[381553811,1756281105934,-681.91731397,0.000249,2]
[381553812,1756281105986,-1071.37205717,0.000249,2]
[381553813,1756281106008,-248.38,0.000249,2]
[381553814,1756281106027,-998.72,0.000249,2]
[381553815,1756281106062,-3682.30668511,0.000249,2]
[381553816,1756281106089,-1426.56331489,0.000249,2]
[381553817,1756281106145,-1208.83331489,0.000249,2]
[381553818,1756281106378,-151.0,0.000249,7]
[381553819,1756281106429,-8640.17668511,0.000249,2]
[381553820,1756281106460,-9318.09268603,0.000249,2]
[381553821,1756281106487,-6317.70331489,0.000249,2]
[381553822,1756281106511,-1208.83331489,0.000249,2]
[381553823,1756281106530,-151.0,0.000249,2]
[381553824,1756281106556,-7280.34337022,0.000249,2]
[381553825,1756281106577,-10000.01,0.000249,2]
[381553846,1756281208330,3238.81330689,0.000199,2]
[381553847,1756281208480,3238.81330662,0.00021627,2]
[381553848,1756281210592,5000.0,0.00023353,2]
[381553852,1756281227278,5000.0,0.00023353,2]
[381553853,1756281243440,3401.95593667,0.00023353,2]
[381553859,1756281275931,201.43800306,0.00021934,2]
[381553863,1756281302531,5000.0,0.00023353,2]
[381553864,1756281318587,5000.0,0.00023353,2]
[381553865,1756281333858,5000.0,0.00023353,2]
[381553866,1756281353239,2751.25142572,0.00023353,2]
[381553869,1756281370479,639.885893,0.00023179,2]
[381553870,1756281396495,3739.13626339,0.000199,2]
[381553871,1756281396648,3739.13626334,0.00021627,2]
[381553873,1756281414592,-748.99917642,0.00023353,2]
[381553874,1756281414634,-3739.13626334,0.00023353,2]
[381553875,1756281414864,1023.73912048,0.00023353,2]
[381553876,1756281414892,3912.93900194,0.00023353,2]
[381553877,1756281427682,1020.012278,0.00023207,2]
[381554931,1756281591688,3373.99461612,0.000199,2]
[381554932,1756281591831,3373.99461583,0.00021627,2]
[381554933,1756281591966,3373.99461583,0.00023353,2]
[381554970,1756281611708,34878.01615222,0.0002,2]
[381554971,1756281611748,75000.0,0.0002,2]
[381554972,1756281611777,38335.17800947,0.0002,2]
[381554984,1756281617347,831.899088,0.00013699,2]
[381554986,1756281617567,831.899088,0.00020187,2]
[381555133,1756281698613,-500.0,0.00023735,2]
[381555134,1756281698649,-500.0,0.00023735,2]
[381555135,1756281698685,-500.0,0.00023735,2]
[381555136,1756281698721,-160.0,0.00023735,2]
[381555137,1756281698758,-300.0,0.00023977,2]
[381555138,1756281698794,-154.82605714,0.00023978,2]
[381555139,1756281698836,-500.0,0.00023978,2]
[381555140,1756281698875,-500.0,0.00023978,2]
[381555141,1756281698914,-500.0,0.00023978,2]
[381555142,1756281698953,-500.0,0.00023978,2]
[381555143,1756281698993,-500.0,0.00023978,2]
[381555144,1756281699032,-270.35788572,0.00023978,2]
[381555147,1756281699269,-229.64211428,0.00023978,2]
[381555148,1756281699307,-500.0,0.00023978,2]
[381555149,1756281699347,-500.0,0.00023978,2]
[381555150,1756281699386,-500.0,0.00023978,2]
[381555151,1756281699423,-500.0,0.00023978,2]
[381555152,1756281699460,-500.0,0.00023978,2]
[381555153,1756281699497,-500.0,0.00023978,2]
[381555154,1756281699536,-500.0,0.00023978,2]
[381555155,1756281699575,-500.0,0.00023978,2]
[381555156,1756281699612,-500.0,0.00023978,2]
[381555157,1756281699659,-40.72577144,0.00023978,2]
[381555158,1756281699905,-459.27422856,0.00023978,2]
[381555159,1756281699945,-500.0,0.00023978,2]
[381555160,1756281699984,-500.0,0.00023978,2]
[381555161,1756281700229,-500.0,0.00023978,2]
[381555162,1756281700267,-350.16546341,0.00023978,2]
[381555163,1756281700304,-500.0,0.00023978,2]
[381555164,1756281700341,-500.0,0.00023978,2]
[381555165,1756281700381,-500.0,0.00023978,2]
[381555166,1756281700420,-500.0,0.00023978,2]
[381555167,1756281700458,-500.0,0.00023978,2]
[381555168,1756281700650,-500.0,0.00023978,2]
[381555170,1756281700685,-300.0,0.00023978,2]
[381555171,1756281700720,-1200.0,0.00023978,2]
[381555172,1756281700755,-2302.56008666,0.00023979,2]
[381555173,1756281700790,-194.88982668,0.00023979,2]
[381555175,1756281701106,-1005.11017332,0.00023979,2]
[381555182,1756281702878,-1822.81117818,0.0002399,2]
[381555183,1756281702911,-10000.01,0.0002399,2]
[381555185,1756281702950,-10000.01,0.0002399,2]
[381555186,1756281702978,-10000.01,0.0002399,2]
[381555195,1756281710176,-10000.01,0.0002399,2]
[381555196,1756281710652,-10000.01,0.0002399,2]
[381555198,1756281710903,-10000.01,0.0002399,2]
[381555199,1756281711175,-10000.01,0.0002399,2]
[381555200,1756281711343,-10000.01,0.0002399,2]
[381555201,1756281711551,-10000.01,0.0002399,2]
[381555203,1756281711773,-1822.91117818,0.0002399,2]
[381555204,1756281711810,-6354.18764364,0.0002399,2]
[381555207,1756281712443,-500.0,0.00024,2]
[381555208,1756281712695,-500.0,0.00024,2]
[381555209,1756281712732,-500.0,0.00024,2]
[381555210,1756281712766,-500.0,0.00024,2]
[381555211,1756281712802,-500.0,0.00024,2]
[381555212,1756281712838,-500.0,0.00024,2]
[381555213,1756281712873,-502.6290904,0.00024,2]
[381555214,1756281713084,-3239.26524325,0.00024419,2]
[381555215,1756281713119,-649.59,0.0002451,3]
[381555216,1756281713157,-500.0,0.00024519,2]
[381555217,1756281713192,-189.60646343,0.00024519,2]
[381555218,1756281713230,-343.08658664,0.00024519,2]
[381555219,1756281713378,-156.91341336,0.00024519,2]
[381555220,1756281713416,-500.0,0.00024519,2]
[381555221,1756281713453,-500.0,0.00024519,2]
[381555222,1756281713490,-500.0,0.00024519,2]
[381555223,1756281713527,-500.0,0.00024519,2]
[381555224,1756281713562,-467.15918224,0.00024519,2]
[381555225,1756281713599,-200.0,0.00024519,2]
[381555226,1756281713636,-500.0,0.00024519,2]
[381555227,1756281713675,-500.0,0.00024519,2]
[381555228,1756281713977,-500.0,0.0002452,2]
[381555229,1756281714065,-500.0,0.0002452,2]
[381555230,1756281714121,-500.0,0.0002452,2]
[381555231,1756281714195,-467.15918224,0.0002452,2]
[381555232,1756281714219,-200.0,0.0002452,2]
[381555233,1756281714238,-500.0,0.0002452,2]